fUST/lending_fUST_20250224
["ID","MTS","AMOUNT","RATE_DAILY","PERIOD"]
[354242565,1740361832970,-501.4280164,0.00013698,2]
[354242566,1740361832980,-501.276759,0.00013698,2]
[354242567,1740361832989,-500.86825859,0.00013698,2]
[354242568,1740361832998,-501.62663036,0.00013698,2]
[354242569,1740361833007,-501.95509498,0.00013698,2]
[354242570,1740361833017,-554.17207244,0.00013698,2]
[354242571,1740361833025,-500.53397067,0.00013698,2]
[354242572,1740361833035,-609.25909806,0.00013698,2]
[354242573,1740361833044,-501.65030621,0.00013698,2]
[354242574,1740361833053,-514.80146711,0.00013698,2]
[354242575,1740361833062,-501.4178197,0.00013698,2]
[354242576,1740361833071,-345.82447469,0.00013698,2]
[354242577,1740361833084,-157.5620318,0.00013698,2]
[354242578,1740361833094,-474.42784349,0.00013698,2]
[354242598,1740361838140,-34.88038183,0.00013698,2]
[354242599,1740361838149,-501.48105022,0.00013698,2]
[354242600,1740361838159,-507.12090427,0.00013698,2]
[354242601,1740361838170,-502.54026775,0.00013698,2]
[354242602,1740361838180,-500.78442115,0.00013698,2]
[354242603,1740361838189,-501.51011985,0.00013698,2]
[354242604,1740361838199,-503.13991346,0.00013698,2]
[354242605,1740361838208,-500.46138688,0.00013698,2]
[354242606,1740361838217,-503.36782992,0.00013698,2]
[354242607,1740361838227,-504.69108117,0.00013698,2]
[354242608,1740361838237,-506.14319716,0.00013698,2]
[354242609,1740361838247,-501.90731191,0.00013698,2]
[354242610,1740361838257,-502.50924656,0.00013698,2]
[354242611,1740361838266,-505.05247585,0.00013698,2]
[354242612,1740361838275,-500.75378076,0.00013698,2]
[354242613,1740361838286,-501.26615432,0.00013698,2]
[354242614,1740361838295,-504.19311614,0.00013698,2]
[354242616,1740361838305,-511.59445015,0.00013698,2]
[354242618,1740361838314,-501.82868522,0.00013698,2]
[354242619,1740361838324,-500.97840208,0.00013698,2]
[354242620,1740361838333,-503.6966018,0.00013698,2]
[354242621,1740361838342,-500.91040981,0.00013698,2]
[354242622,1740361838352,-506.97268083,0.00013698,2]
[354242623,1740361838361,-500.95088679,0.00013698,2]
[354242624,1740361838371,-505.87961349,0.00013698,2]
[354242625,1740361838380,-501.4920064,0.00013698,2]
[354242626,1740361838389,-503.04319764,0.00013698,2]
[354242627,1740361838399,-511.25565528,0.00013698,2]
[354242628,1740361838409,-508.79575356,0.00013698,2]
[354242629,1740361838418,-501.28394638,0.00013698,2]
[354242630,1740361838427,-505.66246309,0.00013698,2]
[354242631,1740361838436,-504.17278214,0.00013698,2]
[354242632,1740361838446,-498.76878209,0.00013698,2]
[354242633,1740361838455,-501.59300912,0.00013698,2]
[354242634,1740361838464,-500.75676422,0.00013698,2]
[354242635,1740361838473,-505.00685738,0.00013698,2]
[354242636,1740361838483,-505.31968875,0.00013698,2]
[354242637,1740361838492,-514.16461262,0.00013698,2]
[354242638,1740361838502,-503.90302191,0.00013698,2]
[354242639,1740361838511,-446.11584177,0.00013698,2]
[354242640,1740361838521,-501.19560581,0.00013698,2]
[354242641,1740361838530,-500.0,0.00013698,2]
[354242642,1740361838540,-505.57717089,0.00013698,2]
[354242643,1740361838548,-519.4771188,0.00013698,2]
[354242644,1740361838557,-501.46353853,0.00013698,2]
[354242645,1740361838567,-500.9126461,0.00013698,2]
[354242646,1740361838576,-502.60846266,0.00013698,2]
[354242647,1740361838585,-500.53372305,0.00013698,2]
[354242648,1740361838594,-500.66776413,0.00013698,2]
[354242649,1740361838603,-502.1483727,0.00013698,2]
[354242650,1740361838612,-500.74970453,0.00013698,2]
[354242651,1740361838621,-500.0,0.00013698,2]
[354242652,1740361838630,-508.23995908,0.00013698,2]
[354242653,1740361838639,-513.02952246,0.00013698,2]
[354242654,1740361838648,-265.02017437,0.00013698,2]
[354242655,1740361838657,-500.0,0.00013698,2]
[354242656,1740361838666,-504.197337,0.00013698,2]
[354242657,1740361838675,-502.29003004,0.00013698,2]
[354242658,1740361838684,-511.73781525,0.00013698,2]
[354242659,1740361838693,-1504.29,0.00013698,2]
[354242660,1740361838702,-500.0,0.00013698,2]
[354242661,1740361838711,-502.23091549,0.00013698,2]
[354242662,1740361838720,-503.97934753,0.00013698,2]
[354242663,1740361838730,-501.94968641,0.00013698,2]
[354242664,1740361838740,-506.22114156,0.00013698,2]
[354242665,1740361838749,-505.91626903,0.00013698,2]
[354242666,1740361838758,-500.0,0.00013698,2]
[354242667,1740361838767,-500.0,0.00013698,2]
[354242668,1740361838776,-504.16936185,0.00013698,2]
[354242669,1740361838785,-510.83531237,0.00013698,2]
[354242670,1740361838794,-504.4341749,0.00013698,2]
[354242671,1740361838803,-502.35879153,0.00013698,2]
[354242672,1740361838813,-508.47080479,0.00013698,2]
[354242673,1740361838822,-503.04662514,0.00013698,2]
[354242674,1740361838831,-507.08318183,0.00013698,2]
[354242675,1740361838840,-500.0,0.00013698,2]
[354242676,1740361838849,-510.2581517,0.00013698,2]
[354242677,1740361838858,-501.19127625,0.00013698,2]
[354242678,1740361838867,-505.50099595,0.00013698,2]
[354242679,1740361838876,-501.86252505,0.00013698,2]
[354242680,1740361838885,-500.0,0.00013698,2]
[354242681,1740361838895,-502.4251665,0.00013698,2]
[354242682,1740361838904,-634.29589946,0.00013698,2]
[354242683,1740361838914,-500.0,0.00013698,2]
[354242684,1740361838923,-504.89305013,0.00013698,2]
[354242685,1740361838932,-500.0,0.00013698,2]
[354242686,1740361838941,-514.66680435,0.00013698,2]
[354242687,1740361838951,-500.0,0.00013698,2]
[354242688,1740361838960,-362.66191948,0.00013698,2]
[354242689,1740361838969,-504.33498649,0.00013698,2]
[354242690,1740361838978,-506.86626486,0.00013698,2]
[354242691,1740361838991,-508.35015543,0.00013698,2]
[354242692,1740361839000,-503.5735996,0.00013698,2]
[354242693,1740361839009,-500.64866823,0.00013698,2]
[354242694,1740361839019,-500.0,0.00013698,2]
[354242695,1740361839028,-500.0,0.00013698,2]
[354242696,1740361839037,-500.0,0.00013698,2]
[354242697,1740361839046,-500.0,0.00013698,2]
[354242698,1740361839055,-500.0,0.00013698,2]
[354242699,1740361839065,-500.0,0.00013698,2]
[354242700,1740361839074,-3666.38,0.00013698,2]
[354242701,1740361839083,-500.0,0.00013698,2]
[354242702,1740361839092,-500.0,0.00013698,2]
[354242703,1740361839101,-504.12376583,0.00013698,2]
[354242704,1740361839111,-529.20423776,0.00013698,2]
[354242705,1740361839120,-500.0,0.00013698,2]
[354242706,1740361839129,-500.0,0.00013698,2]
[354242707,1740361839138,-500.0,0.00013698,2]
[354242708,1740361839148,-517.22191452,0.00013698,2]
[354242709,1740361839157,-503.99571453,0.00013698,2]
[354242710,1740361839167,-1428.04,0.00013698,2]
[354242711,1740361839179,-1471.86,0.00013698,2]
[354242712,1740361839188,-511.88228514,0.00013698,2]
[354242713,1740361839198,-500.0,0.00013698,2]
[354242714,1740361839208,-509.93473873,0.00013698,2]
[354242715,1740361839218,-500.0,0.00013698,2]
[354242716,1740361839227,-513.02256836,0.00013698,2]
[354242717,1740361839237,-500.0,0.00013698,2]
[354242718,1740361839247,-525.41,0.00013698,2]
[354242719,1740361839257,-500.0,0.00013698,2]
[354242720,1740361839266,-516.96952631,0.00013698,2]
[354242721,1740361839274,-502.31427885,0.00013698,2]
[354242722,1740361839283,-500.0,0.00013698,2]
[354242723,1740361839293,-500.0,0.00013698,2]
[354242724,1740361839302,-500.0,0.00013698,2]
[354242725,1740361839311,-502.0672489,0.00013698,2]
[354242726,1740361839320,-500.0,0.00013698,2]
[354242727,1740361839330,-500.0,0.00013698,2]
[354242728,1740361839339,-500.0,0.00013698,2]
[354242729,1740361839348,-503.34889311,0.00013698,2]
[354242730,1740361839357,-503.07983506,0.00013698,2]
[354242731,1740361839366,-500.0,0.00013698,2]
[354242732,1740361839375,-504.5541462,0.00013698,2]
[354242733,1740361839385,-500.0,0.00013698,2]
[354242734,1740361839394,-502.32756353,0.00013698,2]
[354242735,1740361839403,-500.0,0.00013698,2]
[354242736,1740361839412,-500.0,0.00013698,2]
[354242737,1740361839421,-509.45267739,0.00013698,2]
[354242738,1740361839430,-500.0,0.00013698,2]
[354242739,1740361839439,-500.0,0.00013698,2]
[354242740,1740361839449,-610.57459463,0.00013698,2]
[354242741,1740361839459,-505.54149758,0.00013698,2]
[354242742,1740361839468,-502.53137831,0.00013698,2]
[354242743,1740361839477,-501.90188415,0.00013698,2]
[354242744,1740361839487,-500.0,0.00013698,2]
[354242745,1740361839496,-500.83507592,0.00013698,2]
[354242746,1740361839505,-500.0,0.00013698,2]
[354242747,1740361839514,-501.30769139,0.00013698,2]
[354242748,1740361839524,-500.60904295,0.00013698,2]
[354242749,1740361839532,-500.0,0.00013698,2]
[354242750,1740361839542,-501.25653234,0.00013698,2]
[354242751,1740361839551,-502.56623356,0.00013698,2]
[354242752,1740361839561,-504.88451616,0.00013698,2]
[354242753,1740361839570,-505.14752148,0.00013698,2]
[354242754,1740361839579,-500.0,0.00013698,2]
[354242755,1740361839588,-501.58324254,0.00013698,2]
[354242756,1740361839597,-500.30675008,0.00013698,2]
[354242757,1740361839606,-503.9037234,0.00013698,2]
[354242758,1740361839615,-506.46390884,0.00013698,2]
[354242759,1740361839624,-500.0,0.00013698,2]
[354242760,1740361839634,-208.3428006,0.00013699,2]
[354242762,1740361839643,-183.796217,0.00013699,2]
[354242764,1740361839652,-500.0,0.00013779,2]
[354242766,1740361839661,-500.0,0.00013779,2]
[354242768,1740361839670,-500.0,0.00013779,2]
[354242770,1740361839679,-500.0,0.00013779,2]
[354242772,1740361839688,-500.0,0.00013779,2]
[354242774,1740361839697,-500.0,0.00013779,2]
[354242776,1740361839706,-500.0,0.00013779,2]
[354242778,1740361839715,-500.0,0.00013779,2]
[354242779,1740361839725,-500.0,0.00013779,2]
[354242780,1740361839734,-220.87446143,0.00013779,2]
[354242781,1740361839743,-500.0,0.00013779,2]
[354242782,1740361839752,-500.0,0.00013779,2]
[354242783,1740361839760,-500.0,0.00013779,2]
[354242785,1740361839770,-650.21934473,0.00013779,2]
[354242786,1740361839778,-500.0,0.00013779,2]
[354242788,1740361839787,-500.0,0.00013779,2]
[354242790,1740361839796,-500.0,0.00013779,2]
[354242791,1740361839805,-500.0,0.00013779,2]
[354242792,1740361839814,-500.0,0.00013779,2]
[354242793,1740361839823,-500.0,0.00013779,2]
[354242795,1740361839832,-559.35580126,0.00013779,2]
[354242796,1740361839842,-500.0,0.00013779,2]
[354242797,1740361839851,-500.0,0.00013779,2]
[354242799,1740361839860,-500.0,0.00013779,2]
[354242800,1740361839869,-500.0,0.00013779,2]
[354242801,1740361839878,-500.0,0.00013779,2]
[354242803,1740361839887,-500.0,0.00013779,2]
[354242805,1740361839896,-505.18278867,0.00013779,2]
[354242807,1740361839905,-524.04918556,0.0001378,2]
[354242809,1740361839914,-504.25138001,0.0001378,2]
[354242811,1740361839923,-504.64113983,0.0001378,2]
[354242813,1740361839932,-503.60466304,0.0001378,2]
[354242815,1740361839941,-1504.29,0.0001378,2]
[354242817,1740361839950,-531.3508947,0.0001378,2]
[354242819,1740361839959,-500.0,0.0001378,2]
[354242821,1740361839968,-528.17273155,0.0001378,2]
[354242823,1740361839978,-503.94482188,0.0001378,2]
[354242825,1740361839988,-500.0,0.0001378,2]
[354242827,1740361839997,-504.60176531,0.0001378,2]
[354242829,1740361840007,-510.57462536,0.0001378,2]
[354242831,1740361840016,-506.8959323,0.0001378,2]
[354242833,1740361840025,-517.2726115,0.0001378,2]
[354242835,1740361840034,-500.0,0.0001378,2]
[354242837,1740361840043,-506.36809602,0.0001378,2]
[354242839,1740361840052,-533.80344821,0.0001378,2]
[354242841,1740361840063,-500.0,0.0001378,2]
[354242843,1740361840071,-505.39902178,0.0001378,2]
[354242845,1740361840080,-3666.38,0.0001378,2]
[354242847,1740361840089,-500.0,0.0001378,2]
[354242849,1740361840098,-500.0,0.0001378,2]
[354242851,1740361840108,-522.52711721,0.0001378,2]
[354242853,1740361840116,-500.0,0.0001378,2]
[354242854,1740361840126,-505.40943375,0.0001378,2]
[354242855,1740361840135,-1428.04,0.0001378,2]
[354242856,1740361840144,-1471.86,0.0001378,2]
[354242858,1740361840153,-500.0,0.0001378,2]
[354242860,1740361840162,-516.42674511,0.0001378,2]
[354242862,1740361840173,-500.0,0.0001378,2]
[354242864,1740361840183,-525.41,0.0001378,2]
[354242866,1740361840192,-508.77637316,0.0001378,2]
[354242868,1740361840202,-504.78209411,0.0001378,2]
[354242870,1740361840211,-503.89113518,0.0001378,2]
[354242872,1740361840220,-500.0,0.0001378,2]
[354242874,1740361840229,-500.0,0.0001378,2]
[354242876,1740361840240,-506.58977317,0.0001378,2]
[354242878,1740361840250,-500.0,0.0001378,2]
[354242880,1740361840260,-507.59381746,0.0001378,2]
[354242882,1740361840269,-624.68,0.0001378,2]
[354242884,1740361840278,-500.0,0.0001378,2]
[354242885,1740361840287,-505.10080061,0.0001378,2]
[354242887,1740361840296,-510.79467687,0.0001378,2]
[354242890,1740361840306,-520.12265827,0.0001378,2]
[354242892,1740361840315,-500.0,0.00013861,2]
[354242894,1740361840325,-568.92231286,0.00013861,2]
[354242896,1740361840334,-509.63638483,0.00013861,2]
[354242898,1740361840343,-512.46279908,0.00013861,2]
[354242900,1740361840352,-1504.29,0.00013863,2]
[354242902,1740361840362,-500.0,0.00013863,2]
[354242904,1740361840371,-500.0,0.00013863,2]
[354242906,1740361840381,-555.42640807,0.00013863,2]
[354242918,1740361840479,-500.0,0.00013863,2]
[354242920,1740361840490,-3666.38,0.00013863,2]
[354242922,1740361840499,-500.0,0.00013863,2]
[354242924,1740361840508,-500.0,0.00013863,2]
[354242925,1740361840517,-372.76636509,0.00013863,2]
[354242928,1740361840527,-1428.04,0.00013863,2]
[354242930,1740361840536,-1471.86,0.00013863,2]
[354242932,1740361840546,-500.0,0.00013863,2]
[354242934,1740361840555,-500.0,0.00013863,2]
[354242936,1740361840564,-525.41,0.00013863,2]
[354242938,1740361840574,-500.0,0.00013863,2]
[354242940,1740361840583,-500.0,0.00013863,2]
[354242942,1740361840592,-467.57,0.00013863,2]
[354242944,1740361840602,-500.0,0.00013944,2]
[354242946,1740361840611,-1504.29,0.00013945,2]
[354242949,1740361840621,-500.0,0.00013945,2]
[354242951,1740361840630,-500.0,0.00013945,2]
[354242952,1740361840639,-500.0,0.00013945,2]
[354242955,1740361840649,-3666.38,0.00013945,2]
[354242957,1740361840658,-500.0,0.00013945,2]
[354242959,1740361840668,-500.0,0.00013945,2]
[354242961,1740361840677,-1428.04,0.00013945,2]
[354242963,1740361840686,-1471.86,0.00013945,2]
[354242965,1740361840694,-500.0,0.00013945,2]
[354242967,1740361840703,-500.0,0.00013945,2]
[354242969,1740361840713,-525.41,0.00013945,2]
[354242971,1740361840722,-500.0,0.00013945,2]
[354242973,1740361840731,-500.0,0.00013945,2]
[354242975,1740361840740,-152.15122,0.00013988,2]
[354242977,1740361840749,-172.842,0.00014003,2]
[354242979,1740361840758,-500.0,0.00014026,2]
[354242981,1740361840767,-1504.29,0.00014027,2]
[354242983,1740361840776,-500.0,0.00014027,2]
[354242985,1740361840785,-500.0,0.00014027,2]
[354242987,1740361840794,-500.0,0.00014027,2]
[354242989,1740361840803,-3666.38,0.00014027,2]
[354242991,1740361840813,-500.0,0.00014027,2]
[354242993,1740361840822,-500.0,0.00014027,2]
[354242995,1740361840831,-1428.04,0.00014027,2]
[354242997,1740361840840,-1471.86,0.00014027,2]
[354242999,1740361840849,-500.0,0.00014027,2]
[354243001,1740361840859,-500.0,0.00014027,2]
[354243003,1740361840868,-525.41,0.00014027,2]
[354243005,1740361840877,-500.0,0.00014027,2]
[354243007,1740361840886,-174.7989859,0.00014027,2]
[354243010,1740361840902,-325.2010141,0.00014027,2]
[354243012,1740361840911,-396.0,0.00014079,2]
[354243014,1740361840920,-500.0,0.00014108,2]
[354243016,1740361840930,-1504.29,0.00014109,2]
[354243018,1740361840939,-500.0,0.00014109,2]
[354243020,1740361840948,-500.0,0.00014109,2]
[354243022,1740361840958,-500.0,0.00014109,2]
[354243024,1740361840967,-785.45528209,0.00014109,2]
[354243026,1740361840978,-1306.75266778,0.00014109,2]
[354243028,1740361840990,-1574.17205013,0.00014109,2]
[354243030,1740361840999,-500.0,0.00014109,2]
[354243032,1740361841009,-500.0,0.00014109,2]
[354243034,1740361841018,-1428.04,0.00014109,2]
[354243036,1740361841027,-1471.86,0.00014109,2]
[354243038,1740361841036,-500.0,0.00014109,2]
[354243040,1740361841046,-500.0,0.00014109,2]
[354243042,1740361841055,-525.41,0.00014109,2]
[354243044,1740361841064,-500.0,0.00014109,2]
[354243046,1740361841073,-500.0,0.00014109,2]
[354243048,1740361841083,-500.0,0.0001419,2]
[354243050,1740361841092,-1504.29,0.00014191,2]
[354243052,1740361841101,-500.0,0.00014191,2]
[354243054,1740361841110,-500.0,0.00014191,2]
[354243056,1740361841120,-500.0,0.00014191,2]
[354243058,1740361841129,-337.43946819,0.00014191,2]
[354243061,1740361841141,-3328.94053181,0.00014191,2]
[354243063,1740361841150,-500.0,0.00014191,2]
[354243065,1740361841160,-500.0,0.00014191,2]
[354243067,1740361841171,-1428.04,0.00014191,2]
[354243069,1740361841182,-1471.86,0.00014191,2]
[354243071,1740361841191,-500.0,0.00014191,2]
[354243073,1740361841201,-500.0,0.00014191,2]
[354243075,1740361841211,-525.41,0.00014191,2]
[354243077,1740361841220,-500.0,0.00014191,2]
[354243079,1740361841229,-500.0,0.00014191,2]
[354243081,1740361841240,-205.1906205,0.00014205,2]
[354243083,1740361841252,-500.71741506,0.00014221,2]
[354243085,1740361841262,-328.07120334,0.00014221,2]
[354243087,1740361841271,-181.04161829,0.00014226,2]
[354243090,1740361841282,-998.22813971,0.00014226,2]
[354243091,1740361841291,-500.0,0.00014272,2]
[354243094,1740361841301,-1504.29,0.00014273,2]
[354243096,1740361841311,-500.0,0.00014273,2]
[354243098,1740361841320,-500.0,0.00014273,2]
[354243100,1740361841328,-500.0,0.00014273,2]
[354243102,1740361841337,-3666.38,0.00014273,2]
[354243104,1740361841346,-500.0,0.00014273,2]
[354243106,1740361841355,-500.0,0.00014273,2]
[354243108,1740361841364,-1428.04,0.00014273,2]
[354243110,1740361841373,-1471.86,0.00014273,2]
[354243112,1740361841383,-500.0,0.00014273,2]
[354243114,1740361841392,-500.0,0.00014273,2]
[354243116,1740361841402,-525.41,0.00014273,2]
[354243118,1740361841411,-500.0,0.00014273,2]
[354243120,1740361841421,-323.64399464,0.00014273,2]
[354243122,1740361841433,-176.35600536,0.00014273,2]
[354243124,1740361841442,-151.0,0.00014273,2]
[354243126,1740361841451,-67.64399464,0.00014281,2]
[354243128,1740361841463,-119.25158398,0.00014281,2]
[354243130,1740361841473,-515.60521562,0.00014287,2]
[354243132,1740361841482,-500.0,0.00014355,2]
[354243134,1740361841492,-217.44001936,0.00014356,5]
[354243136,1740361841501,-1476.76349977,0.00014356,2]
[354243172,1740361841811,-27.52650023,0.00014356,2]
[354243174,1740361841821,-500.0,0.00014356,2]
[354243176,1740361841830,-362.09603175,0.00014356,2]
[354243178,1740361841839,-500.0,0.00014356,2]
[354243180,1740361841848,-3666.38,0.00014356,2]
[354243182,1740361841857,-500.0,0.00014356,2]
[354243184,1740361841866,-500.0,0.00014356,2]
[354243186,1740361841875,-387.87099388,0.00014356,2]
[354243196,1740361842016,-500.0,0.00013698,2]
[354243197,1740361842026,-504.1528887,0.0001378,2]
[354243198,1740361842035,-1040.16900612,0.00014356,2]
[354243199,1740361842044,-1471.86,0.00014356,2]
[354243200,1740361842053,-449.76339533,0.00014356,2]
[354243201,1740361842062,-151.776504,0.00014356,2]
[354243202,1740361842071,-500.0,0.00014356,2]
[354243203,1740361842080,-525.41,0.00014356,2]
[354243204,1740361842089,-500.0,0.00014356,2]
[354243205,1740361842098,-500.0,0.00014356,2]
[354243206,1740361842107,-500.0,0.00014437,2]
[354243208,1740361842116,-2200.33514867,0.00014438,5]
[354243210,1740361842125,-500.0,0.00014438,2]
[354243212,1740361842134,-186.435744,0.00014438,2]
[354243214,1740361842143,-500.0,0.00014438,2]
[354243216,1740361842152,-3666.38,0.00014438,2]
[354243218,1740361842161,-500.0,0.00014438,2]
[354243220,1740361842174,-500.0,0.00014438,2]
[354243222,1740361842183,-1428.04,0.00014438,2]
[354243224,1740361842193,-1471.86,0.00014438,2]
[354243226,1740361842202,-500.0,0.00014438,2]
[354243228,1740361842211,-525.41,0.00014438,2]
[354243230,1740361842221,-500.0,0.00014438,2]
[354243232,1740361842230,-500.0,0.00014438,2]
[354243234,1740361842239,-2200.0,0.00014491,2]
[354243236,1740361842249,-1000.0,0.000145,5]
[354243238,1740361842260,-1700.00000099,0.000145,2]
[354243240,1740361842269,-1556.85,0.000145,2]
[354243242,1740361842278,-500.0,0.00014519,2]
[354243244,1740361842287,-151.0,0.0001452,2]
[354243246,1740361842296,-323.41160782,0.0001452,2]
[354243248,1740361842305,-500.0,0.0001452,2]
[354243250,1740361842314,-3666.38,0.0001452,2]
[354243252,1740361842323,-500.0,0.0001452,2]
[354243254,1740361842332,-500.0,0.0001452,2]
[354243256,1740361842341,-1428.04,0.0001452,2]
[354243258,1740361842350,-1471.86,0.0001452,2]
[354243260,1740361842359,-605.63197883,0.0001452,2]
[354243262,1740361842369,-525.41,0.0001452,2]
[354243264,1740361842377,-500.0,0.0001452,2]
[354243266,1740361842386,-500.0,0.0001452,2]
[354243268,1740361842395,-263.69606151,0.0001454,2]
[354243270,1740361842405,-500.0,0.00014601,2]
[354243272,1740361842414,-151.0,0.00014602,2]
[354243274,1740361842423,-500.0,0.00014602,2]
[354243276,1740361842432,-3666.38,0.00014602,2]
[354243278,1740361842441,-500.0,0.00014602,2]
[354243280,1740361842450,-500.0,0.00014602,2]
[354243282,1740361842460,-1428.04,0.00014602,2]
[354243284,1740361842469,-1471.86,0.00014602,2]
[354243286,1740361842478,-525.41,0.00014602,2]
[354243288,1740361842488,-500.0,0.00014602,2]
[354243290,1740361842497,-500.0,0.00014602,2]
[354243292,1740361842507,-153.475551,0.00014602,2]
[354243294,1740361842516,-500.42665067,0.00014656,2]
[354243296,1740361842525,-157.59823552,0.00014674,2]
[354243298,1740361842534,-500.0,0.00014683,2]
[354243300,1740361842544,-500.0,0.00014684,2]
[354243302,1740361842553,-3666.38,0.00014684,2]
[354243304,1740361842562,-500.0,0.00014684,2]
[354243306,1740361842571,-500.0,0.00014684,2]
[354243308,1740361842580,-1428.04,0.00014684,2]
[354243310,1740361842589,-1471.86,0.00014684,2]
[354243312,1740361842598,-525.41,0.00014684,2]
[354243314,1740361842607,-500.0,0.00014684,2]
[354243316,1740361842617,-500.0,0.00014684,2]
[354243318,1740361842626,-500.0,0.00014766,2]
[354243320,1740361842635,-500.0,0.00014767,2]
[354243323,1740361842644,-3666.38,0.00014767,2]
[354243325,1740361842653,-500.0,0.00014767,2]
[354243327,1740361842664,-527.27609899,0.00014767,2]
[354243329,1740361842673,-1428.04,0.00014767,2]
[354243331,1740361842682,-1471.86,0.00014767,2]
[354243333,1740361842691,-580.0,0.00014767,2]
[354243335,1740361842700,-500.0,0.00014767,2]
[354243337,1740361842709,-150.26,0.00014767,2]
[354243339,1740361842718,-525.41,0.00014767,2]
[354243341,1740361842727,-500.0,0.00014767,2]
[354243343,1740361842736,-189.99678574,0.00014767,2]
[354243345,1740361842746,-160.0,0.00014824,3]
[354243347,1740361842755,-875.18678475,0.00014847,2]
[354243486,1740361846234,-500.0,0.00013698,2]
[354243488,1740361846244,-500.52143235,0.00013698,2]
[354243490,1740361846255,-500.60948229,0.00013698,2]
[354243492,1740361846265,-500.0,0.0001378,2]
[354243494,1740361846274,-500.0,0.00013863,2]
[354243496,1740361846284,-500.0,0.00013945,2]
[354243498,1740361846294,-500.0,0.00014027,2]
[354243500,1740361846303,-500.0,0.00014109,2]
[354243502,1740361846312,-160.2,0.00014191,2]
[354243504,1740361846321,-151.0,0.00014273,2]
[354243506,1740361846330,-151.341571,0.00014273,2]
[354243508,1740361846339,-151.0,0.00014602,2]
[354243510,1740361846349,-21755.42544644,0.00014847,2]
[354243512,1740361846358,-500.0,0.00014848,2]
[354243514,1740361846367,-500.0,0.00014849,2]
[354243516,1740361846377,-3666.38,0.00014849,2]
[354243518,1740361846386,-500.0,0.00014849,2]
[354243520,1740361846395,-1428.04,0.00014849,2]
[354243522,1740361846405,-1471.86,0.00014849,2]
[354243524,1740361846415,-525.41,0.00014849,2]
[354243526,1740361846424,-500.0,0.00014849,2]
[354243528,1740361846433,-500.58924009,0.00014873,2]
[354243530,1740361846443,-500.0,0.00014899,2]
[354243532,1740361846453,-226.91721877,0.00014899,2]
[354243534,1740361846462,-223.33880698,0.00014899,2]
[354243536,1740361846471,-500.0,0.00014899,2]
[354243538,1740361846480,-2000.0,0.000149,2]
[354243540,1740361846489,-288.47074407,0.000149,2]
[354243542,1740361846499,-288.47074406,0.000149,2]
[354243544,1740361846508,-288.47074406,0.000149,2]
[354243546,1740361846517,-151.0,0.000149,2]
[354243548,1740361846526,-154.724043,0.000149,2]
[354243550,1740361846536,-8216.2311045,0.000149,2]
[354243680,1740362290234,186.4160216,0.00019,120]
[354243681,1740362381088,219.779029,9.041e-05,2]
[354243682,1740362925629,150.0,0.00019,120]
[354243773,1740363032561,-160.34849726,0.00013599,2]
[354243775,1740363032575,-163.14971783,0.00013679,2]
[354243777,1740363032584,-300.0,0.00013697,2]
[354243779,1740363032594,-501.15639606,0.00013698,2]
[354243781,1740363032604,-500.0,0.00013698,2]
[354243783,1740363032614,-500.0,0.00013698,2]
[354243785,1740363032623,-501.14306316,0.00013698,2]
[354243787,1740363032632,-500.0,0.00013698,2]
[354243789,1740363032641,-500.91131093,0.00013698,2]
[354243791,1740363032653,-500.92322922,0.00013698,2]
[354243793,1740363032663,-501.13515757,0.00013698,2]